fUSD/lending_fUSD_20250216
["ID","MTS","AMOUNT","RATE_DAILY","PERIOD"]
[353259232,1739719885205,-656.43,0.00011863,2]
[353259233,1739719885215,-533.75,0.00011863,2]
[353259234,1739719885229,-500.0,0.00011863,2]
[353259235,1739719885238,-1667.11,0.00011863,2]
[353259236,1739719885248,-1280.71,0.00011863,2]
[353259237,1739719885257,-1761.78,0.00011863,2]
[353259238,1739719885267,-655.49,0.00011863,2]
[353259239,1739719885277,-765.75,0.00011863,2]
[353259240,1739719885286,-954.99,0.00011863,2]
[353259241,1739719885296,-510.92,0.00011863,2]
[353259242,1739719885305,-1071.72,0.00011863,2]
[353259243,1739719885315,-898.62,0.00011863,2]
[353259244,1739719885473,-963.74,0.00011863,2]
[353259245,1739719885483,-500.0,0.00011863,2]
[353259246,1739719885493,-1432.53,0.00011863,2]
[353259247,1739719885503,-1288.05,0.00011863,2]
[353259248,1739719885513,-1131.27,0.00011863,2]
[353259249,1739719885523,-1497.56,0.00011863,2]
[353259250,1739719885532,-938.67,0.00011863,2]
[353259251,1739719885542,-922.59,0.00011863,2]
[353259252,1739719885552,-1297.94,0.00011863,2]
[353259253,1739719885561,-1275.03,0.00011863,2]
[353259254,1739719885570,-1207.44,0.00011863,2]
[353259255,1739719885580,-857.03,0.00011863,2]
[353259256,1739719885588,-1139.27,0.00011863,2]
[353259257,1739719885598,-2609.71,0.00011863,2]
[353259258,1739719885608,-2357.36,0.00011863,2]
[353259259,1739719885618,-948.68,0.00011863,2]
[353259260,1739719885627,-745.27,0.00011863,2]
[353259261,1739719885636,-1322.5,0.00011863,2]
[353259262,1739719885646,-1014.65,0.00011863,2]
[353259263,1739719885656,-732.97,0.00011863,2]
[353259264,1739719885666,-3965.85,0.00011863,2]
[353259265,1739719885676,-1054.68,0.00011863,2]
[353259266,1739719885687,-1029.25,0.00011863,2]
[353259267,1739719885697,-647.83,0.00011863,2]
[353259268,1739719885707,-1129.52,0.00011863,2]
[353259269,1739719885716,-500.0,0.00011863,2]
[353259270,1739719885726,-1589.44,0.00011863,2]
[353259271,1739719885735,-856.52,0.00011863,2]
[353259272,1739719885745,-1397.84,0.00011863,2]
[353259273,1739719885755,-2006.41,0.00011863,2]
[353259274,1739719885764,-1495.83,0.00011863,2]
[353259275,1739719885774,-2283.55,0.00011863,2]
[353259276,1739719885784,-950.54,0.00011863,2]
[353259277,1739719885794,-1573.52,0.00011863,2]
[353259278,1739719885804,-1359.93,0.00011863,2]
[353259279,1739719885814,-629.85,0.00011863,2]
[353259280,1739719885825,-500.0,0.00011863,2]
[353259281,1739719885835,-1723.99,0.00011863,2]
[353259282,1739719885844,-937.03,0.00011863,2]
[353259283,1739719885854,-1047.35,0.00011863,2]
[353259284,1739719885863,-835.09,0.00011863,2]
[353259285,1739719885873,-989.7,0.00011863,2]
[353259286,1739719885883,-1680.52,0.00011863,2]
[353259287,1739719885893,-502.61,0.00011863,2]
[353259288,1739719885903,-685.52,0.00011863,2]
[353259289,1739719885912,-1596.94,0.00011863,2]
[353259290,1739719885922,-2108.61,0.00011863,2]
[353259291,1739719885931,-1064.74,0.00011863,2]
[353259292,1739719885940,-500.0,0.00011863,2]
[353259293,1739719885950,-500.0,0.00011863,2]
[353259294,1739719885959,-704.43,0.00011863,2]
[353259295,1739719885969,-500.0,0.00011863,2]
[353259296,1739719885978,-564.7,0.00011863,2]
[353259297,1739719885987,-726.22,0.00011863,2]
[353259298,1739719885996,-1272.36,0.00011863,2]
[353259299,1739719886006,-709.56,0.00011863,2]
[353259300,1739719886015,-500.0,0.00011863,2]
[353259301,1739719886025,-580.11,0.00011863,2]
[353259302,1739719886034,-1243.11,0.00011863,2]
[353259303,1739719886044,-1320.64,0.00011863,2]
[353259304,1739719886057,-893.54,0.00011863,2]
[353259305,1739719886066,-636.44,0.00011863,2]
[353259306,1739719886078,-500.0,0.00011863,2]
[353259307,1739719886089,-748.46,0.00011863,2]
[353259308,1739719886099,-740.82,0.00011863,2]
[353259309,1739719886108,-1055.86,0.00011863,2]
[353259310,1739719886117,-1117.63,0.00011863,2]
[353259311,1739719886126,-857.05,0.00011863,2]
[353259312,1739719886135,-498.93,0.00011877,2]
[353259313,1739719886146,-233.66584544,0.000119,2]
[353259314,1739719886155,-500.0,0.00011944,2]
[353259315,1739719886165,-500.0,0.00011944,2]
[353259316,1739719886174,-500.0,0.00011944,2]
[353259317,1739719886183,-500.0,0.00011944,2]
[353259318,1739719886193,-500.0,0.00011944,2]
[353259319,1739719886202,-500.0,0.00011944,2]
[353259320,1739719886211,-500.0,0.00011944,2]
[353259321,1739719886224,-500.0,0.00011944,2]
[353259322,1739719886233,-500.0,0.00011944,2]
[353259323,1739719886243,-1091.82,0.00011944,2]
[353259324,1739719886253,-500.0,0.00011944,2]
[353259325,1739719886262,-1505.24,0.00011944,2]
[353259326,1739719886272,-910.39,0.00011944,2]
[353259327,1739719886281,-1653.06,0.00011944,2]
[353259328,1739719886290,-1341.68,0.00011944,2]
[353259329,1739719886301,-1590.08,0.00011944,2]
[353259330,1739719886311,-4185.89,0.00011944,2]
[353259331,1739719886321,-1188.19,0.00011944,2]
[353259332,1739719886331,-944.72,0.00011944,2]
[353259333,1739719886340,-500.0,0.00011944,2]
[353259334,1739719886350,-1095.34,0.00011944,2]
[353259335,1739719886360,-1710.67,0.00011944,2]
[353259336,1739719886369,-989.2,0.00011944,2]
[353259337,1739719886380,-1445.76,0.00011944,2]
[353259338,1739719886392,-1428.0,0.00011944,2]
[353259339,1739719886401,-1000.0,0.00011944,2]
[353259340,1739719886412,-1550.81,0.00011944,2]
[353259341,1739719886422,-2083.21,0.00011944,2]
[353259342,1739719886431,-307.82367636,0.00011944,2]
[353259343,1739719886441,-1852.92,0.00011944,2]
[353259344,1739719886451,-500.0,0.00011944,2]
[353259345,1739719886459,-500.0,0.00011945,2]
[353259346,1739719886470,-151.0,0.00011945,2]
[353259347,1739719886479,-151.0,0.00011945,2]
[353259348,1739719886488,-151.0,0.00011945,2]
[353259349,1739719886498,-509.66,0.00011945,2]
[353259350,1739719886507,-500.0,0.00011945,2]
[353259351,1739719886516,-500.0,0.00011945,2]
[353259352,1739719886526,-500.0,0.00011945,2]
[353259353,1739719886535,-546.98,0.00011945,2]
[353259354,1739719886544,-778.31,0.00011945,2]
[353259355,1739719886553,-720.05,0.00011945,2]
[353259356,1739719886563,-982.93,0.00011945,2]
[353259357,1739719886571,-610.07,0.00011945,2]
[353259358,1739719886580,-812.65,0.00011945,2]
[353259359,1739719886589,-500.0,0.00011945,2]
[353259360,1739719886598,-500.0,0.00011945,2]
[353259361,1739719886607,-500.0,0.00011945,2]
[353259362,1739719886616,-761.58,0.00011945,2]
[353259363,1739719886626,-527.09,0.00011945,2]
[353259364,1739719886635,-500.0,0.00011945,2]
[353259365,1739719886644,-1082.54,0.00011945,2]
[353259366,1739719886654,-797.05,0.00011945,2]
[353259367,1739719886663,-717.56,0.00011945,2]
[353259368,1739719886672,-607.4,0.00011945,2]
[353259369,1739719886681,-500.0,0.00011945,2]
[353259370,1739719886691,-682.32,0.00011945,2]
[353259371,1739719886700,-500.0,0.00011945,2]
[353259372,1739719886710,-1095.09,0.00011945,2]
[353259373,1739719886719,-500.0,0.00011945,2]
[353259374,1739719886728,-500.0,0.00011945,2]
[353259375,1739719886738,-752.79,0.00011945,2]
[353259376,1739719886748,-693.95,0.00011945,2]
[353259377,1739719886757,-606.73,0.00011945,2]
[353259378,1739719886767,-500.0,0.00011945,2]
[353259379,1739719886776,-624.98,0.00011945,2]
[353259380,1739719886786,-189.51057232,0.00011945,2]
[353259381,1739719886796,-500.0,0.00011945,2]
[353259382,1739719886805,-562.44,0.00011945,2]
[353259383,1739719886814,-791.35,0.00011945,2]
[353259384,1739719886824,-500.0,0.00011945,2]
[353259385,1739719886834,-1070.44,0.00011945,2]
[353259386,1739719886844,-887.17,0.00011945,2]
[353259387,1739719886853,-500.0,0.00011945,2]
[353259388,1739719886862,-801.39237,0.00011945,2]
[353259389,1739719886872,-658.15,0.00011945,2]
[353259390,1739719886881,-500.0,0.00011945,2]
[353259391,1739719886890,-500.0,0.00011945,2]
[353259392,1739719886900,-723.28,0.00011945,2]
[353259393,1739719886910,-615.74,0.00011945,2]
[353259394,1739719886919,-1036.138115,0.00011945,2]
[353259395,1739719886928,-500.0,0.00011945,2]
[353259396,1739719886937,-500.0,0.00011945,2]
[353259397,1739719886947,-500.0,0.00011945,2]
[353259398,1739719886956,-500.0,0.00011945,2]
[353259399,1739719886966,-500.0,0.00011945,2]
[353259400,1739719886975,-1142.85,0.00011945,2]
[353259401,1739719886985,-541.94550727,0.00011945,2]
[353259402,1739719886995,-500.0,0.00011945,2]
[353259403,1739719887005,-572.02,0.00011945,2]
[353259404,1739719887015,-500.0,0.00011945,2]
[353259405,1739719887024,-564.69,0.00011945,2]
[353259406,1739719887034,-551.48,0.00011945,2]
[353259407,1739719887044,-676.69,0.00011945,2]
[353259408,1739719887055,-500.0,0.00011945,2]
[353259409,1739719887064,-615.32,0.00011945,2]
[353259410,1739719887074,-594.63,0.00011945,2]
[353259411,1739719887083,-647.43,0.00011945,2]
[353259412,1739719887093,-605.03,0.00011945,2]
[353259413,1739719887102,-737.6,0.00011945,2]
[353259414,1739719887112,-677.67,0.00011945,2]
[353259415,1739719887122,-856.01,0.00011945,2]
[353259416,1739719887131,-580.88,0.00011945,2]
[353259417,1739719887141,-547.28,0.00011945,2]
[353259418,1739719887151,-659.59,0.00011945,2]
[353259419,1739719887160,-251.50013684,0.00011945,2]
[353259420,1739719887170,-500.0,0.00011945,2]
[353259421,1739719887179,-679.65,0.00011945,2]
[353259422,1739719887189,-635.55,0.00011945,2]
[353259423,1739719887200,-500.0,0.00011945,2]
[353259424,1739719887210,-710.02,0.00011945,2]
[353259425,1739719887224,-552.24,0.00011945,2]
[353259426,1739719887234,-609.92,0.00011945,2]
[353259427,1739719887245,-775.33,0.00011945,2]
[353259428,1739719887254,-927.32,0.00011945,2]
[353259429,1739719887263,-833.8,0.00011945,2]
[353259430,1739719887272,-713.28,0.00011945,2]
[353259431,1739719887282,-260.12,0.00011945,2]
[353259432,1739719887293,-661.28,0.00011945,2]
[353259433,1739719887303,-763.65,0.00011945,2]
[353259434,1739719887313,-500.0,0.00011945,2]
[353259435,1739719887323,-696.46,0.00011945,2]
[353259436,1739719887334,-500.0,0.00011945,2]
[353259437,1739719887344,-1016.22,0.00011945,2]
[353259438,1739719887356,-840.07,0.00011945,2]
[353259439,1739719887366,-500.0,0.00011945,2]
[353259440,1739719887376,-997.87,0.00011945,2]
[353259441,1739719887386,-1941.86,0.00011945,2]
[353259442,1739719887396,-500.0,0.00011945,2]
[353259443,1739719887406,-500.0,0.00011945,2]
[353259444,1739719887416,-960.55,0.00011945,2]
[353259445,1739719887425,-500.0,0.00011945,2]
[353259446,1739719887435,-1316.29,0.00011945,2]
[353259447,1739719887445,-628.04,0.00011945,2]
[353259448,1739719887454,-967.16,0.00011945,2]
[353259449,1739719887464,-1082.77,0.00011945,2]
[353259450,1739719887475,-537.42,0.00011945,2]
[353259451,1739719887484,-1148.65,0.00011945,2]
[353259452,1739719887493,-522.8,0.00011945,2]
[353259453,1739719887505,-500.0,0.00011945,2]
[353259454,1739719887515,-1133.71,0.00011945,2]
[353259455,1739719887525,-1545.2,0.00011945,2]
[353259456,1739719887535,-1208.7,0.00011945,2]
[353259457,1739719887544,-3059.32,0.00011945,2]
[353259458,1739719887555,-575.61,0.00011945,2]
[353259459,1739719887565,-1330.36,0.00011945,2]
[353259460,1739719887574,-1260.47,0.00011945,2]
[353259461,1739719887586,-657.52,0.00011945,2]
[353259462,1739719887596,-656.43,0.00011945,2]
[353259463,1739719887607,-533.75,0.00011945,2]
[353259464,1739719887617,-500.0,0.00011945,2]
[353259465,1739719887626,-1667.11,0.00011945,2]
[353259466,1739719887636,-1280.71,0.00011945,2]
[353259467,1739719887646,-1761.78,0.00011945,2]
[353259468,1739719887656,-655.49,0.00011945,2]
[353259469,1739719887666,-765.75,0.00011945,2]
[353259470,1739719887676,-954.99,0.00011945,2]
[353259471,1739719887687,-510.92,0.00011945,2]
[353259472,1739719887697,-1071.72,0.00011945,2]
[353259473,1739719887706,-898.62,0.00011945,2]
[353259474,1739719887716,-963.74,0.00011945,2]
[353259475,1739719887726,-500.0,0.00011945,2]
[353259476,1739719887737,-1432.53,0.00011945,2]
[353259477,1739719887747,-1288.05,0.00011945,2]
[353259478,1739719887757,-1131.27,0.00011945,2]
[353259479,1739719887767,-1497.56,0.00011945,2]
[353259480,1739719887777,-938.67,0.00011945,2]
[353259481,1739719887787,-922.59,0.00011945,2]
[353259482,1739719887797,-1297.94,0.00011945,2]
[353259483,1739719887807,-1275.03,0.00011945,2]
[353259484,1739719887817,-1207.44,0.00011945,2]
[353259485,1739719887827,-857.03,0.00011945,2]
[353259486,1739719887836,-1139.27,0.00011945,2]
[353259487,1739719887846,-2609.71,0.00011945,2]
[353259488,1739719887856,-2357.36,0.00011945,2]
[353259489,1739719887867,-948.68,0.00011945,2]
[353259490,1739719887877,-745.27,0.00011945,2]
[353259491,1739719887887,-1322.5,0.00011945,2]
[353259492,1739719887898,-1014.65,0.00011945,2]
[353259493,1739719887909,-732.97,0.00011945,2]
[353259494,1739719887920,-3965.85,0.00011945,2]
[353259495,1739719887930,-1054.68,0.00011945,2]
[353259496,1739719887941,-1029.25,0.00011945,2]
[353259497,1739719887951,-647.83,0.00011945,2]
[353259498,1739719887962,-1129.52,0.00011945,2]
[353259499,1739719887972,-500.0,0.00011945,2]
[353259500,1739719887982,-1589.44,0.00011945,2]
[353259501,1739719887992,-856.52,0.00011945,2]
[353259502,1739719888002,-1397.84,0.00011945,2]
[353259503,1739719888011,-2006.41,0.00011945,2]
[353259504,1739719888162,-1495.83,0.00011945,2]
[353259505,1739719888172,-2283.55,0.00011945,2]
[353259506,1739719888182,-950.54,0.00011945,2]
[353259507,1739719888192,-1573.52,0.00011945,2]
[353259508,1739719888203,-1359.93,0.00011945,2]
[353259509,1739719888214,-629.85,0.00011945,2]
[353259510,1739719888228,-500.0,0.00011945,2]
[353259511,1739719888238,-1723.99,0.00011945,2]
[353259512,1739719888248,-937.03,0.00011945,2]
[353259513,1739719888259,-1047.35,0.00011945,2]
[353259514,1739719888270,-835.09,0.00011945,2]
[353259515,1739719888279,-989.7,0.00011945,2]
[353259516,1739719888289,-1680.52,0.00011945,2]
[353259517,1739719888301,-502.61,0.00011945,2]
[353259518,1739719888311,-685.52,0.00011945,2]
[353259519,1739719888320,-1596.94,0.00011945,2]
[353259520,1739719888330,-2108.61,0.00011945,2]
[353259521,1739719888340,-1064.74,0.00011945,2]
[353259522,1739719888350,-500.0,0.00011945,2]
[353259523,1739719888359,-500.0,0.00011945,2]
[353259524,1739719888369,-704.43,0.00011945,2]
[353259525,1739719888378,-500.0,0.00011945,2]
[353259526,1739719888388,-564.7,0.00011945,2]
[353259527,1739719888397,-726.22,0.00011945,2]
[353259528,1739719888407,-1272.36,0.00011945,2]
[353259529,1739719888416,-709.56,0.00011945,2]
[353259530,1739719888425,-500.0,0.00011945,2]
[353259531,1739719888435,-580.11,0.00011945,2]
[353259532,1739719888444,-1243.11,0.00011945,2]
[353259533,1739719888454,-1320.64,0.00011945,2]
[353259534,1739719888464,-893.54,0.00011945,2]
[353259535,1739719888474,-636.44,0.00011945,2]
[353259536,1739719888484,-500.0,0.00011945,2]
[353259537,1739719888494,-748.46,0.00011945,2]
[353259538,1739719888504,-740.82,0.00011945,2]
[353259539,1739719888515,-1055.86,0.00011945,2]
[353259540,1739719888525,-1117.63,0.00011945,2]
[353259541,1739719888536,-857.05,0.00011945,2]
[353259542,1739719888547,-500.0,0.00011971,2]
[353259543,1739719888557,-4005.05999801,0.00012,2]
[353259544,1739719888567,-500.0,0.00012027,2]
[353259545,1739719888576,-509.66,0.00012027,2]
[353259546,1739719888585,-500.0,0.00012027,2]
[353259547,1739719888595,-500.0,0.00012027,2]
[353259548,1739719888604,-500.0,0.00012027,2]
[353259549,1739719888615,-500.0,0.00012027,2]
[353259550,1739719888624,-500.0,0.00012027,2]
[353259551,1739719888634,-546.98,0.00012027,2]
[353259552,1739719888644,-778.31,0.00012027,2]
[353259553,1739719888655,-720.05,0.00012027,2]
[353259554,1739719888665,-500.0,0.00012027,2]
[353259555,1739719888675,-982.93,0.00012027,2]
[353259556,1739719888685,-610.07,0.00012027,2]
[353259557,1739719888695,-812.65,0.00012027,2]
[353259558,1739719888704,-212.62,0.00012027,2]
[353259559,1739719888714,-500.0,0.00012027,2]
[353259560,1739719888723,-500.0,0.00012027,2]
[353259561,1739719888733,-500.0,0.00012027,2]
[353259562,1739719888743,-761.58,0.00012027,2]
[353259563,1739719888753,-527.09,0.00012027,2]
[353259564,1739719888763,-500.0,0.00012027,2]
[353259565,1739719888772,-1082.54,0.00012027,2]
[353259566,1739719888782,-797.05,0.00012027,2]
[353259567,1739719888791,-717.56,0.00012027,2]
[353259568,1739719888801,-607.4,0.00012027,2]
[353259569,1739719888811,-500.0,0.00012027,2]
[353259570,1739719888821,-682.32,0.00012027,2]
[353259571,1739719888831,-500.0,0.00012027,2]
[353259572,1739719888840,-1095.09,0.00012027,2]
[353259573,1739719888850,-500.0,0.00012027,2]
[353259574,1739719888859,-500.0,0.00012027,2]
[353259575,1739719888872,-500.0,0.00012027,2]
[353259576,1739719888882,-752.79,0.00012027,2]
[353259577,1739719888891,-693.95,0.00012027,2]
[353259578,1739719888900,-606.73,0.00012027,2]
[353259579,1739719888910,-500.0,0.00012027,2]
[353259580,1739719888919,-500.0,0.00012027,2]
[353259581,1739719888927,-624.98,0.00012027,2]
[353259582,1739719888936,-500.0,0.00012027,2]
[353259583,1739719888945,-562.44,0.00012027,2]
[353259584,1739719888954,-791.35,0.00012027,2]
[353259585,1739719888964,-500.0,0.00012027,2]
[353259586,1739719888973,-1070.44,0.00012027,2]
[353259587,1739719888982,-887.17,0.00012027,2]
[353259588,1739719888991,-500.0,0.00012027,2]
[353259589,1739719889002,-801.39237,0.00012027,2]
[353259590,1739719889011,-658.15,0.00012027,2]
[353259591,1739719889021,-500.0,0.00012027,2]
[353259592,1739719889031,-500.0,0.00012027,2]
[353259593,1739719889040,-723.28,0.00012027,2]
[353259594,1739719889051,-615.74,0.00012027,2]
[353259595,1739719889060,-500.0,0.00012027,2]
[353259596,1739719889070,-1036.138115,0.00012027,2]
[353259597,1739719889079,-500.0,0.00012027,2]
[353259598,1739719889089,-500.0,0.00012027,2]
[353259599,1739719889098,-500.0,0.00012027,2]
[353259600,1739719889108,-500.0,0.00012027,2]
[353259601,1739719889117,-500.0,0.00012027,2]
[353259602,1739719889127,-1142.85,0.00012027,2]
[353259603,1739719889137,-500.0,0.00012027,2]
[353259604,1739719889146,-307.8295073,0.00012027,2]
[353259605,1739719889156,-572.02,0.00012027,2]
[353259606,1739719889166,-500.0,0.00012027,2]
[353259607,1739719889175,-564.69,0.00012027,2]
[353259608,1739719889185,-551.48,0.00012027,2]
[353259609,1739719889195,-676.69,0.00012027,2]
[353259610,1739719889205,-500.0,0.00012027,2]
[353259611,1739719889215,-615.32,0.00012027,2]
[353259612,1739719889228,-594.63,0.00012027,2]
[353259613,1739719889238,-647.43,0.00012027,2]
[353259614,1739719889247,-605.03,0.00012027,2]
[353259615,1739719889257,-737.6,0.00012027,2]
[353259616,1739719889269,-677.67,0.00012027,2]
[353259617,1739719889280,-856.01,0.00012027,2]
[353259618,1739719889290,-580.88,0.00012027,2]
[353259619,1739719889301,-547.28,0.00012027,2]
[353259620,1739719889311,-659.59,0.00012027,2]
[353259621,1739719889321,-500.0,0.00012027,2]
[353259622,1739719889331,-679.65,0.00012027,2]
[353259623,1739719889342,-635.55,0.00012027,2]
[353259624,1739719889352,-500.0,0.00012027,2]
[353259625,1739719889361,-500.0,0.00012027,2]
[353259626,1739719889371,-710.02,0.00012027,2]
[353259627,1739719889381,-552.24,0.00012027,2]
[353259628,1739719889390,-609.92,0.00012027,2]
[353259629,1739719889400,-775.33,0.00012027,2]
[353259630,1739719889410,-927.32,0.00012027,2]
[353259631,1739719889420,-1091.82,0.00012027,2]
[353259632,1739719889431,-833.8,0.00012027,2]
[353259633,1739719889440,-713.28,0.00012027,2]
[353259634,1739719889451,-661.28,0.00012027,2]
[353259635,1739719889461,-763.65,0.00012027,2]
[353259636,1739719889471,-500.0,0.00012027,2]
[353259637,1739719889480,-500.0,0.00012027,2]
[353259638,1739719889490,-1505.24,0.00012027,2]
[353259639,1739719889500,-696.46,0.00012027,2]
[353259640,1739719889510,-500.0,0.00012027,2]
[353259641,1739719889520,-910.39,0.00012027,2]
[353259642,1739719889530,-1016.22,0.00012027,2]
[353259643,1739719889540,-1653.06,0.00012027,2]
[353259644,1739719889549,-840.07,0.00012027,2]
[353259645,1739719889560,-500.0,0.00012027,2]
[353259646,1739719889569,-997.87,0.00012027,2]
[353259647,1739719889580,-1941.86,0.00012027,2]
[353259648,1739719889591,-1341.68,0.00012027,2]
[353259649,1739719889602,-500.0,0.00012027,2]
[353259650,1739719889612,-365.3465813,0.00012027,2]
[353259651,1739719889622,-960.55,0.00012027,2]
[353259652,1739719889631,-1590.08,0.00012027,2]
[353259653,1739719889641,-500.0,0.00012027,2]
[353259654,1739719889652,-1316.29,0.00012027,2]
[353259655,1739719889662,-628.04,0.00012027,2]
[353259656,1739719889672,-967.16,0.00012027,2]
[353259657,1739719889683,-1082.77,0.00012027,2]
[353259658,1739719889692,-4185.89,0.00012027,2]
[353259659,1739719889702,-537.42,0.00012027,2]
[353259660,1739719889711,-1148.65,0.00012027,2]
[353259661,1739719889720,-522.8,0.00012027,2]
[353259662,1739719889730,-500.0,0.00012027,2]
[353259663,1739719889739,-1133.71,0.00012027,2]
[353259664,1739719889749,-1188.19,0.00012027,2]
[353259665,1739719889759,-1545.2,0.00012027,2]
[353259666,1739719889768,-1208.7,0.00012027,2]
[353259667,1739719889778,-3059.32,0.00012027,2]
[353259668,1739719889787,-575.61,0.00012027,2]
[353259669,1739719889797,-1330.36,0.00012027,2]
[353259670,1739719889807,-1260.47,0.00012027,2]
[353259671,1739719889817,-944.72,0.00012027,2]
[353259672,1739719889826,-657.52,0.00012027,2]
[353259673,1739719889836,-656.43,0.00012027,2]
[353259674,1739719889846,-533.75,0.00012027,2]
[353259675,1739719889856,-500.0,0.00012027,2]
[353259676,1739719889866,-1667.11,0.00012027,2]
[353259677,1739719889876,-1280.71,0.00012027,2]
[353259678,1739719889885,-1761.78,0.00012027,2]
[353259679,1739719889895,-655.49,0.00012027,2]
[353259680,1739719889905,-765.75,0.00012027,2]
[353259681,1739719889914,-954.99,0.00012027,2]
[353259682,1739719889925,-510.92,0.00012027,2]
[353259683,1739719889934,-1071.72,0.00012027,2]
[353259684,1739719889944,-898.62,0.00012027,2]
[353259685,1739719889953,-963.74,0.00012027,2]
[353259686,1739719889963,-500.0,0.00012027,2]
[353259687,1739719889973,-500.0,0.00012027,2]
[353259688,1739719889982,-1095.34,0.00012027,2]
[353259689,1739719889993,-1432.53,0.00012027,2]
[353259690,1739719890004,-1288.05,0.00012027,2]
[353259691,1739719890013,-1131.27,0.00012027,2]
[353259692,1739719890023,-1497.56,0.00012027,2]
[353259693,1739719890032,-1710.67,0.00012027,2]
[353259694,1739719890042,-938.67,0.00012027,2]
[353259695,1739719890051,-922.59,0.00012027,2]
[353259696,1739719890060,-1297.94,0.00012027,2]
[353259697,1739719890070,-1275.03,0.00012027,2]
[353259698,1739719890079,-1207.44,0.00012027,2]
[353259699,1739719890088,-857.03,0.00012027,2]
[353259700,1739719890098,-1139.27,0.00012027,2]
[353259701,1739719890108,-989.2,0.00012027,2]
[353259702,1739719890118,-2609.71,0.00012027,2]
[353259703,1739719890129,-2357.36,0.00012027,2]
[353259704,1739719890139,-948.68,0.00012027,2]
[353259705,1739719890149,-745.27,0.00012027,2]
[353259706,1739719890158,-1322.5,0.00012027,2]
[353259707,1739719890168,-1014.65,0.00012027,2]
[353259708,1739719890178,-732.97,0.00012027,2]
[353259709,1739719890188,-3965.85,0.00012027,2]
[353259710,1739719890198,-1445.76,0.00012027,2]
[353259711,1739719890208,-1054.68,0.00012027,2]
[353259712,1739719890219,-1029.25,0.00012027,2]
[353259713,1739719890231,-647.83,0.00012027,2]
[353259714,1739719890242,-1129.52,0.00012027,2]
[353259715,1739719890252,-500.0,0.00012027,2]
[353259716,1739719890263,-1589.44,0.00012027,2]
[353259717,1739719890273,-1428.0,0.00012027,2]
[353259718,1739719890282,-856.52,0.00012027,2]
[353259719,1739719890292,-1397.84,0.00012027,2]
[353259720,1739719890302,-2006.41,0.00012027,2]
[353259721,1739719890311,-1495.83,0.00012027,2]
[353259722,1739719890320,-2283.55,0.00012027,2]
[353259723,1739719890329,-950.54,0.00012027,2]
[353259724,1739719890339,-1573.52,0.00012027,2]
[353259725,1739719890350,-1000.0,0.00012027,2]
[353259726,1739719890359,-1359.93,0.00012027,2]
[353259727,1739719890370,-629.85,0.00012027,2]
[353259728,1739719890379,-500.0,0.00012027,2]
[353259729,1739719890389,-1550.81,0.00012027,2]
[353259730,1739719890399,-1723.99,0.00012027,2]
[353259731,1739719890409,-937.03,0.00012027,2]